bitfinex-derivatives/quotes_BNBF0:USTF0_20250904
["timestamp","ask_amount","ask_price","bid_price","bid_amount"]
[1757022061710,0.72053598,847.77,847.21,0.78950717]
[1757022062013,0.79364481,847.77,847.23,0.78950717]
[1757022062212,0.72053598,847.76,847.22,0.78950717]
[1757022062610,0.72053598,847.77,847.22,0.78950717]
[1757022063918,0.72053598,847.77,847.21,0.78950717]
[1757022064117,0.72053598,847.78,847.21,0.78950717]
[1757022064322,1.51418079,847.78,847.21,0.78950717]
[1757022064517,0.72053598,847.77,847.1,0.78950717]
[1757022064717,0.20526917,847.9,847.11,0.78950717]
[1757022064718,0.72053598,847.89,847.11,0.78950717]
[1757022064917,0.20526917,847.9,847.11,0.78950717]
[1757022067116,0.20526917,847.9,846.85,1.0573912]
[1757022067117,0.20526917,847.9,847.1,0.78950717]
[1757022067319,0.92580515,847.9,847.1,0.78950717]
[1757022067517,0.72053598,847.89,847.1,0.78950717]
[1757022067913,0.20526917,847.9,847.1,0.78950717]
[1757022070219,0.92688727,847.9,847.1,0.78950717]
[1757022070416,0.7216181,847.89,847.1,0.78950717]
[1757022070614,0.7216181,847.88,847.1,0.78950717]
[1757022070818,0.7216181,847.87,847.1,0.78950717]
[1757022071018,0.7216181,847.86,847.11,0.78950717]
[1757022071215,0.7216181,847.86,846.85,1.0573912]
[1757022071216,0.7216181,847.85,847.1,0.78950717]
[1757022071418,0.7216181,847.84,847.1,0.78950717]
[1757022071721,0.7216181,847.83,847.1,0.78950717]
[1757022072015,0.7216181,847.82,847.1,0.78950717]
[1757022072220,0.7216181,847.81,847.1,0.78950717]
[1757022072420,0.7216181,847.8,847.1,0.78950717]
[1757022072620,0.7216181,847.79,847.1,0.78950717]
[1757022072819,0.7216181,847.78,847.1,0.78950717]
[1757022073022,0.7216181,847.77,847.1,0.78950717]
[1757022073221,0.7216181,847.76,847.1,0.78950717]
[1757022073418,0.7216181,847.75,847.1,0.78950717]
[1757022073622,0.7216181,847.74,847.1,0.78950717]
[1757022073820,0.20526917,847.9,847.1,0.78950717]
[1757022074222,0.79364481,847.86,847.17,0.78950717]
[1757022074419,1.5151378,847.85,847.17,0.78950717]
[1757022074626,0.72149299,847.84,847.17,0.78950717]
[1757022075324,0.72149299,847.84,847.14,0.78950717]
[1757022075522,0.72149299,847.83,847.17,0.78950717]
[1757022075720,0.72149299,847.82,847.17,0.78950717]
[1757022076024,0.72149299,847.81,847.17,0.78950717]
[1757022076221,0.72149299,847.8,847.17,0.78950717]
[1757022076525,0.72149299,847.79,847.17,0.78950717]
[1757022076724,0.72149299,847.78,847.17,0.78950717]
[1757022076924,0.72149299,847.77,847.17,0.78950717]
[1757022077124,0.99891398,847.9,847.17,0.78950717]
[1757022077125,0.72149299,847.76,847.17,0.78950717]
[1757022077320,0.72149299,847.75,847.17,0.78950717]
[1757022077523,0.72149299,847.74,847.17,0.78950717]
[1757022077722,0.72149299,847.73,847.17,0.78950717]
[1757022077922,0.99891398,847.9,847.17,0.78950717]
[1757022078128,0.72142646,847.89,847.17,0.78950717]
[1757022078626,0.72142646,847.88,847.17,0.78950717]
[1757022078823,0.72142646,847.87,847.17,0.78950717]
[1757022079127,0.72142646,847.86,847.17,0.78950717]
[1757022079333,0.72142646,847.85,847.17,0.78950717]
[1757022079525,0.72142646,847.84,847.17,0.78950717]
[1757022079723,0.72142646,847.83,847.17,0.78950717]
[1757022079923,0.72142646,847.82,847.16,0.78950717]
[1757022080126,0.72142646,847.81,847.16,0.78950717]
[1757022080328,0.72142646,847.8,847.16,0.78950717]
[1757022080628,0.72142646,847.79,847.16,0.78950717]
[1757022080825,0.72142646,847.78,847.16,0.78950717]
[1757022081023,0.72142646,847.77,847.16,0.78950717]
[1757022081328,0.72142646,847.76,847.16,0.78950717]
[1757022081528,0.72142646,847.75,847.16,0.78950717]
[1757022081735,0.72142646,847.74,847.16,0.78950717]
[1757022081925,0.72142646,847.73,847.16,0.78950717]
[1757022082125,0.20526917,847.9,847.16,0.78950717]
[1757022082425,1.72029734,847.9,847.17,0.78950717]
[1757022082631,0.72138336,847.89,847.17,0.78950717]
[1757022082830,0.72138336,847.89,847.16,0.78950717]
[1757022083031,0.72138336,847.89,847.17,0.78950717]
[1757022083227,0.72138336,847.89,847.16,0.78950717]
[1757022083431,0.92665253,847.9,847.16,0.78950717]
[1757022084933,0.92665253,847.9,847.13,0.78950717]
[1757022085229,0.72138336,847.89,847.15,0.78950717]
[1757022085429,0.20526917,847.9,847.15,0.78950717]
[1757022092033,0.20526917,847.9,847.16,0.78950717]
[1757022092532,0.20526917,847.9,847.15,0.78950717]
[1757022092737,0.20526917,847.9,847.16,0.78950717]
[1757022093533,0.20526917,847.9,847.15,0.78950717]
[1757022095034,0.79364481,847.88,847.19,0.78950717]
[1757022095239,1.51502817,847.87,847.19,0.78950717]
[1757022095535,0.72138336,847.86,847.19,0.78950717]
[1757022097240,0.72138336,847.86,847.2,0.78950717]
[1757022100336,1.51502817,847.86,847.2,0.78950717]
[1757022100541,0.72138336,847.85,847.2,0.78950717]
[1757022102038,0.79364481,847.86,847.2,0.78950717]
[1757022102242,0.7217998,847.85,847.21,0.78950717]
[1757022103039,0.7217998,847.85,847.22,0.78950717]
[1757022103342,0.7217998,847.85,847.25,0.78950717]
[1757022103343,0.79364481,847.82,847.25,0.78950717]
[1757022103642,0.7217998,847.81,847.25,0.78950717]
[1757022104338,1.51544461,847.81,847.25,0.78950717]
[1757022104542,0.7217998,847.8,847.25,0.78950717]
[1757022104739,0.7217998,847.8,847.26,0.78950717]
[1757022104944,0.7217998,847.79,847.26,0.78950717]
[1757022105239,0.7217998,847.78,847.25,0.78950717]
[1757022105445,0.7217998,847.77,847.25,0.78950717]
[1757022105641,0.7217998,847.76,847.25,0.78950717]
[1757022105841,0.7217998,847.75,847.25,0.78950717]
[1757022106041,0.7217998,847.74,847.25,0.78950717]
[1757022106243,0.7217998,847.73,847.25,0.78950717]
[1757022106443,0.7217998,847.72,847.25,0.78950717]
[1757022106640,0.7217998,847.71,847.25,0.78950717]
[1757022106841,0.7217998,847.7,847.25,0.78950717]
[1757022107143,0.7217998,847.69,847.25,0.78950717]
[1757022107344,0.79364481,847.83,847.25,0.78950717]
[1757022107645,0.72207441,847.82,847.25,0.78950717]
[1757022108248,0.72207441,847.82,847.26,0.78950717]
[1757022108447,0.72207441,847.82,846.36,0.20528915]
[1757022108448,1.51571922,847.81,847.27,0.78950717]
[1757022108647,0.72207441,847.8,847.27,0.78950717]
[1757022109948,0.72207441,847.8,847.26,0.78950717]
[1757022110150,0.72207441,847.79,847.26,0.78950717]
[1757022110445,0.72207441,847.78,847.25,0.78950717]
[1757022110648,0.72207441,847.77,847.25,0.78950717]
[1757022110852,0.72207441,847.76,847.25,0.78950717]
[1757022111046,0.72207441,847.76,846.36,0.20528915]
[1757022111047,0.72207441,847.75,847.23,0.78950717]
[1757022111249,0.72207441,847.74,847.23,0.78950717]
[1757022112053,0.72243038,847.73,847.23,0.78950717]
[1757022112254,0.72243038,847.86,847.23,0.78950717]
[1757022112453,0.7224354,847.85,847.23,0.78950717]
[1757022112754,0.7224354,847.85,847.22,0.78950717]
[1757022112954,0.20526917,847.9,847.22,0.78950717]
[1757022113150,0.20526917,847.9,847.21,0.78950717]
[1757022115157,0.20526917,847.9,847.2,0.78950717]
[1757022117658,0.92724434,847.9,847.2,0.78950717]
[1757022117871,0.72197517,847.89,847.2,0.78950717]
[1757022118052,0.20526917,847.9,847.2,0.78950717]
[1757022118053,0.72197517,847.88,847.2,0.78950717]
[1757022118358,0.72197517,847.87,847.21,0.78950717]
[1757022118557,0.72197517,847.86,847.21,0.78950717]
[1757022118757,0.72197517,847.85,847.21,0.78950717]
[1757022118970,0.72197517,847.84,847.21,0.78950717]
[1757022119159,0.72197517,847.83,847.2,0.78950717]
[1757022119358,0.72197517,847.82,847.21,0.78950717]
[1757022119555,0.72197517,847.81,847.21,0.78950717]
[1757022119760,0.72197517,847.8,847.21,0.79161671]
[1757022119959,0.20526917,847.9,847.21,0.79161671]
[1757022121157,0.20526917,847.9,847.22,0.79161671]
[1757022122863,0.20526917,847.9,847.29,0.79161671]
[1757022124163,0.20526917,847.9,847.28,0.79161671]
[1757022124364,0.92712476,847.9,847.28,0.79161671]
[1757022124660,0.72185559,847.89,847.28,0.79161671]
[1757022124868,0.72185559,847.88,847.28,0.79161671]
[1757022125064,0.72185559,847.87,847.29,0.79161671]
[1757022125364,0.72185559,847.86,847.29,0.79161671]
[1757022125662,0.72185559,847.85,847.29,0.79161671]
[1757022125863,0.72185559,847.84,847.29,0.79161671]
[1757022126064,0.72185559,847.83,847.29,0.79161671]
[1757022126265,0.20526917,847.9,846.36,0.20528915]
[1757022126266,0.72185559,847.82,847.3,0.79161671]
[1757022126461,0.72185559,847.81,847.29,0.79161671]
[1757022126659,0.72185559,847.8,847.29,0.79161671]
[1757022126862,0.72185559,847.79,847.24,0.79161671]
[1757022127160,0.20526917,847.9,847.28,0.79161671]
[1757022127366,0.20526917,847.9,847.3,0.79161671]
[1757022130167,0.20526917,847.9,847.29,0.79161671]
[1757022133165,0.20526917,847.9,847.28,0.79161671]
[1757022134468,0.9268839,847.9,847.28,0.79161671]
[1757022134667,0.72161473,847.89,847.29,0.79161671]
[1757022134867,0.72161473,847.88,847.29,0.79161671]
[1757022135170,0.72161473,847.87,847.28,0.79161671]
[1757022135366,0.72161473,847.86,847.27,0.79161671]
[1757022135564,0.72161473,847.85,847.27,0.79161671]
[1757022135769,0.20526917,847.9,847.27,0.79161671]
[1757022136871,0.20526917,847.9,847.3,0.79161671]
[1757022139973,0.20526917,847.9,847.1,1.0573912]
[1757022140176,0.20526917,847.9,847.3,0.7915256]
[1757022140868,0.20526917,847.9,847.29,0.7915256]
[1757022142471,0.20526917,847.9,847.3,0.7915256]
[1757022142672,0.20526917,847.9,847.31,0.7915256]
[1757022145376,0.20526917,847.9,847.33,0.7915256]
[1757022150678,0.20526917,847.9,847.36,0.7915256]
[1757022156181,0.20526917,847.9,847.34,0.7915256]
[1757022156586,0.92632057,847.9,847.34,0.7915256]
[1757022156782,0.7210514,847.89,847.34,0.7915256]
[1757022157185,0.7210514,847.89,847.35,0.7915256]
[1757022157386,0.20526917,847.9,847.35,0.7915256]
[1757022159092,0.20526917,847.9,847.36,0.7915256]
[1757022159292,0.20526917,847.9,847.32,0.7915256]
[1757022159493,0.20526917,847.9,847.16,0.7915256]
[1757022159989,0.20526917,847.9,847.17,0.7915256]
[1757022160889,0.92632057,847.9,847.17,0.7915256]
[1757022161094,0.7210514,847.89,847.17,0.7915256]
[1757022161292,0.20526917,847.9,847.17,0.7915256]
[1757022167502,0.20526917,847.9,847.18,0.7915256]
[1757022169203,0.7210514,847.89,847.19,0.7915256]
[1757022169403,0.79495941,847.84,847.24,0.7915256]
[1757022169601,0.7210514,847.83,847.24,0.7915256]
[1757022170101,1.51601081,847.83,847.26,0.7915256]
[1757022170304,1.51601081,847.82,847.26,0.7915256]
[1757022170504,0.7210514,847.81,847.24,0.7915256]
[1757022170800,0.7210514,847.85,847.24,0.7915256]
[1757022171101,1.51601081,847.85,847.24,0.7915256]
[1757022171306,0.7210514,847.84,847.24,0.7915256]
[1757022171600,0.7210514,847.85,847.24,0.7915256]
[1757022173204,0.7210514,847.85,847.07,1.0573912]
[1757022173205,0.7210514,847.85,847.23,0.7915256]
[1757022174609,1.51601081,847.85,847.22,0.7915256]
[1757022174804,0.7210514,847.84,847.22,0.7915256]
[1757022175813,0.7210514,847.84,847.21,0.7915256]
[1757022176110,0.79495941,847.83,847.23,0.7915256]
[1757022176310,1.51601081,847.82,847.22,0.7915256]
[1757022176508,0.7210514,847.81,847.22,0.7915256]
[1757022177111,0.7210514,847.81,847.18,0.7915256]
[1757022177310,0.7210514,847.83,847.18,0.7915256]
[1757022177509,1.51601081,847.83,847.19,0.7915256]
[1757022177708,0.7210514,847.82,847.19,0.7915256]
[1757022178223,0.7210514,847.82,847.18,0.7915256]
[1757022178408,0.7210514,847.83,847.18,0.7915256]
[1757022181614,0.7210514,847.84,847.18,0.7915256]
[1757022182014,1.51601081,847.84,847.18,0.7915256]
[1757022182214,0.7210514,847.83,847.17,0.7915256]
[1757022182511,0.7210514,847.84,847.17,0.7915256]
[1757022186918,0.79495941,847.82,847.19,0.7915256]
[1757022187213,0.7210514,847.81,847.19,0.7915256]
[1757022187426,1.51601081,847.81,847.2,0.7915256]
[1757022187615,0.7210514,847.8,847.2,0.7915256]
[1757022188215,0.7210514,847.8,847.19,0.7915256]
[1757022188716,0.20528975,847.67,847.2,0.7915256]
[1757022190321,0.20528975,847.67,847.19,0.7915256]
[1757022194822,0.20528975,847.67,847.2,0.7915256]
[1757022196619,0.20528975,847.67,847.19,0.7915256]
[1757022199930,0.20528975,847.67,847.2,0.7915256]
[1757022205234,0.20528975,847.67,847.21,0.7915256]
[1757022206132,0.20528975,847.67,847.07,1.0573912]
[1757022206329,0.20528975,847.67,847.21,0.79098804]
[1757022210136,0.20528975,847.67,847.22,0.79098804]
[1757022212137,0.20528975,847.67,847.15,0.79098804]
[1757022213238,0.20528975,847.67,847.16,0.79098804]
[1757022215239,0.20528975,847.67,847.17,0.79098804]
[1757022217440,0.20528975,847.67,847.18,0.79098804]
[1757022219142,0.20528975,847.67,847.19,0.79098804]
[1757022221241,0.92736279,847.67,847.19,0.79098804]
[1757022221447,0.20528975,847.67,847.19,0.79098804]
[1757022221846,0.20528975,847.67,847.22,0.79098804]
[1757022222246,0.20528975,847.67,847.23,0.79098804]
[1757022222443,0.72208659,847.78,847.24,0.79098804]
[1757022222748,0.72208659,847.77,847.24,0.79098804]
[1757022222943,0.72208659,847.76,847.24,0.79098804]
[1757022223146,0.72208659,847.75,847.24,0.79098804]
[1757022223347,0.72208659,847.74,847.24,0.79098804]
[1757022223647,0.72208659,847.73,847.24,0.79098804]
[1757022223847,0.72208659,847.72,847.24,0.79098804]
[1757022224046,0.72208659,847.71,847.24,0.79098804]
[1757022224250,0.72208659,847.7,847.24,0.79098804]
[1757022224446,0.72208659,847.69,847.24,0.79098804]
[1757022224644,0.72208659,847.68,847.24,0.79098804]
[1757022224847,0.72208659,847.67,847.24,0.79098804]
[1757022225046,0.72208659,847.66,847.24,0.79098804]
[1757022225246,0.20527522,847.78,847.24,0.79098804]
[1757022226349,0.92739212,847.78,847.24,0.79098804]
[1757022226549,0.7221169,847.77,847.24,0.79098804]
[1757022226747,0.7221169,847.76,847.24,0.79098804]
[1757022226949,0.7221169,847.75,847.24,0.79098804]
[1757022227250,0.7221169,847.74,847.24,0.79098804]
[1757022227450,0.7221169,847.73,847.24,0.79098804]
[1757022227745,0.7221169,847.72,847.23,0.79098804]
[1757022227947,0.7221169,847.71,847.23,0.79098804]
[1757022228146,0.20527522,847.78,847.23,0.79098804]
[1757022228147,0.7221169,847.7,847.23,0.79098804]
[1757022228351,0.7221169,847.69,847.23,0.79098804]
[1757022228550,0.7221169,847.68,847.23,0.79098804]
[1757022228751,0.7221169,847.67,847.23,0.79098804]
[1757022229052,0.20527522,847.78,847.24,0.79098804]
[1757022230747,0.20527522,847.78,847.19,0.79098804]
[1757022231049,0.20527522,847.78,847.15,0.79098804]
[1757022231251,0.92742769,847.78,847.15,0.79098804]
[1757022231551,0.72215247,847.77,847.15,0.79098804]
[1757022231746,0.72215247,847.76,847.15,0.79098804]
[1757022231949,0.72215247,847.75,847.24,0.79098804]
[1757022232153,1.51696097,847.74,847.27,0.79098804]
[1757022232351,1.51696097,847.73,847.27,0.79098804]
[1757022232645,0.72215247,847.72,847.27,0.79098804]
[1757022233252,0.72215247,847.71,847.27,0.79098804]
[1757022233453,0.72223761,847.7,847.27,0.79098804]
[1757022233749,0.72223761,847.7,846.36,0.20528915]
[1757022233750,0.72223761,847.69,847.19,0.79098804]
[1757022233948,0.72223761,847.68,847.2,0.79098804]
[1757022234149,0.20527522,847.78,847.21,0.79098804]
[1757022236349,0.92751796,847.78,847.21,0.79098804]
[1757022236550,0.72224274,847.77,847.21,0.79098804]
[1757022236751,0.72224274,847.76,847.21,0.79098804]
[1757022236953,0.72224274,847.75,847.21,0.79098804]
[1757022237254,0.72224274,847.74,847.21,0.79098804]
[1757022237549,0.72224274,847.73,847.21,0.79098804]
[1757022237749,0.72224274,847.72,847.21,0.79098804]
[1757022237949,0.72224274,847.71,847.21,0.79098804]
[1757022238150,0.72224274,847.7,847.21,0.79098804]
[1757022238350,0.72224274,847.69,847.21,0.79098804]
[1757022238553,0.72224274,847.68,847.21,0.79098804]
[1757022238753,0.20527522,847.78,847.21,0.79098804]
[1757022239154,0.20527522,847.78,847.2,0.79098804]
[1757022240051,0.20527522,847.78,847.21,0.79098804]
[1757022240953,0.92736103,847.78,847.21,0.79098804]
[1757022241153,0.72208581,847.77,847.2,0.79098804]
[1757022241351,0.72208581,847.76,847.2,0.79098804]
[1757022241556,0.72208581,847.75,847.2,0.79098804]
[1757022241756,0.72208581,847.74,847.21,0.79098804]
[1757022242056,0.20527522,847.78,847.21,0.79098804]
[1757022242057,0.72208581,847.73,847.21,0.79098804]
[1757022242251,0.72208581,847.72,847.21,0.79098804]
[1757022242456,0.72208581,847.71,847.21,0.79098804]
[1757022242753,0.72208581,847.7,847.21,0.79098804]
[1757022242958,0.72208581,847.69,847.21,0.79098804]
[1757022243261,0.72208581,847.68,847.21,0.79098804]
[1757022243465,0.72208581,847.67,847.26,0.79098804]
[1757022243659,0.72208581,847.66,847.28,0.79098804]
[1757022243862,0.72208581,847.65,847.28,0.79098804]
[1757022244063,0.72208581,847.64,847.28,0.79098804]
[1757022244260,0.7948085,847.76,847.28,0.79098804]
[1757022244462,0.72207055,847.75,847.28,0.79098804]
[1757022244661,0.72207055,847.74,847.28,0.79098804]
[1757022244961,0.72207055,847.73,847.28,0.79098804]
[1757022245161,0.72207055,847.72,847.28,0.79098804]
[1757022245360,0.72207055,847.71,847.28,0.79098804]
[1757022245560,0.7948085,847.76,847.28,0.79098804]
[1757022245561,0.72207055,847.7,847.28,0.79098804]
[1757022245759,0.72207055,847.69,847.28,0.79098804]
[1757022245964,0.72207055,847.68,847.28,0.79098804]
[1757022246164,0.72207055,847.67,847.28,0.79098804]
[1757022246365,0.72207055,847.66,847.28,0.79098804]
[1757022246560,0.72207055,847.65,847.28,0.79098804]
[1757022246761,0.20527522,847.78,847.29,0.79098804]
[1757022246762,0.72207055,847.64,847.29,0.79098804]
[1757022246964,0.7948085,847.76,847.29,0.79098804]
[1757022247267,0.72206701,847.75,847.29,0.79098804]
[1757022247566,0.72206701,847.74,847.29,0.79098804]
[1757022247760,0.72206701,847.73,847.29,0.79098804]
[1757022247962,0.72206701,847.72,847.29,0.79098804]
[1757022248165,0.72206701,847.71,847.27,0.79098804]
[1757022248364,0.72206701,847.7,847.24,0.79098804]
[1757022248564,0.20527522,847.78,847.33,0.79098804]
[1757022248565,0.72206701,847.69,847.33,0.79098804]
[1757022248863,0.20527522,847.78,847.33,0.79098804]
[1757022249063,0.20527522,847.78,847.32,0.79098804]
[1757022250169,0.20527522,847.78,847.31,0.79098804]
[1757022252069,0.72198241,847.79,847.3,0.79098804]
[1757022252365,0.72198241,847.78,847.32,0.79098804]
[1757022252664,0.2052613,847.85,847.32,0.79098804]
[1757022252868,0.2052613,847.85,846.36,0.20528915]
[1757022252869,0.2052613,847.85,847.23,0.79098804]
[1757022253568,0.2052613,847.85,847.22,0.79098804]
[1757022255069,0.2052613,847.85,847.24,0.79098804]
[1757022257169,0.2052613,847.85,847.23,0.79098804]
[1757022257370,0.2052613,847.85,847.24,0.79098804]
[1757022258367,0.2052613,847.85,847.23,0.79098804]
[1757022262776,0.2052613,847.85,847.29,0.79098804]
[1757022262974,0.2052613,847.85,847.3,0.79098804]
[1757022263979,0.2052613,847.85,847.13,1.0573912]
[1757022263980,0.2052613,847.85,847.29,0.79098804]
[1757022265979,0.2052613,847.85,847.3,0.79098804]
[1757022267080,0.2052613,847.85,847.31,0.79098804]
[1757022267277,0.2052613,847.85,847.32,0.79098804]
[1757022269684,0.2052613,847.85,847.33,0.79098804]
[1757022272786,0.2052613,847.85,847.35,0.79098804]
[1757022273481,0.92676185,847.85,847.35,0.79098804]
[1757022273781,0.72150055,847.84,847.35,0.79098804]
[1757022273985,0.72150055,847.83,847.35,0.79098804]
[1757022274185,0.72150055,847.82,847.35,0.79098804]
[1757022274386,0.72150055,847.81,847.34,0.79098804]
[1757022274584,0.72150055,847.8,847.34,0.79098804]
[1757022274881,0.72150055,847.79,847.34,0.79098804]
[1757022275085,0.72150055,847.78,847.34,0.79098804]
[1757022275284,0.72150055,847.77,847.34,0.79098804]
[1757022275484,0.2052613,847.85,847.34,0.79098804]
[1757022276283,0.2052613,847.85,847.35,0.79098804]
[1757022280585,0.92506735,847.85,847.35,0.79098804]
[1757022280886,0.71980605,847.84,847.35,0.79098804]
[1757022281588,0.71980605,847.84,847.33,0.79098804]
[1757022282086,0.2052613,847.85,847.33,0.79098804]
[1757022283087,0.2052613,847.85,847.34,0.79098804]
[1757022283287,0.2052613,847.85,847.02,1.5831612]
[1757022283288,0.2052613,847.85,847.33,0.79098804]
[1757022285088,0.92506735,847.85,847.33,0.79098804]
[1757022285287,0.71980605,847.84,847.33,0.79098804]
[1757022285687,0.2052613,847.85,847.33,0.79098804]
[1757022286291,0.71980605,847.9,847.34,0.79098804]
[1757022286492,0.71980605,847.93,847.37,0.79098804]
[1757022286693,0.20523648,847.99,847.37,0.79098804]
[1757022287389,0.20523648,847.99,847.36,0.79098804]
[1757022288292,0.20523648,847.99,847.35,0.79098804]
[1757022291699,0.20523648,847.99,847.36,0.79098804]
[1757022291904,0.20523648,847.99,847.33,0.79098804]
[1757022292604,0.20523648,847.99,847.37,0.79098804]
[1757022293899,0.20523648,847.99,847.14,1.0573912]
[1757022293900,0.20523648,847.99,847.38,0.79098804]
[1757022294203,0.92478133,847.99,847.38,0.79098804]
[1757022294404,0.71954485,847.98,847.38,0.79098804]
[1757022294703,0.20523648,847.99,847.38,0.79098804]
[1757022295105,0.20523648,847.99,847.39,0.79098804]
[1757022295305,0.20523648,847.99,847.38,0.79098804]
[1757022295605,0.20523648,847.99,847.39,0.79098804]
[1757022301404,0.20523648,847.99,847.38,0.79098804]
[1757022301809,0.20523648,847.99,847.41,0.79098804]
[1757022302310,0.92487301,847.99,847.42,0.79098804]
[1757022302608,0.71963653,847.98,847.42,0.79098804]
[1757022302907,0.71963653,847.98,847.41,0.79098804]
[1757022303511,0.71963653,847.98,847.43,0.79098804]
[1757022304517,0.71963653,847.98,846.57,0.2052613]
[1757022304518,0.20523648,847.99,847.42,0.79098804]
[1757022307015,0.92487301,847.99,847.42,0.79098804]
[1757022307219,0.71963653,847.98,847.42,0.79098804]
[1757022307419,0.20523648,847.99,847.42,0.79098804]
[1757022309516,0.92487301,847.99,847.42,0.79098804]
[1757022309721,0.71963653,847.98,847.42,0.79098804]
[1757022309918,0.20523648,847.99,847.42,0.79098804]
[1757022311119,0.20523648,847.99,847.43,0.79098804]
[1757022314324,0.20523648,847.99,847.44,0.79098804]
[1757022315225,0.20523648,847.99,847.4,0.79098804]
[1757022317430,0.20523648,847.99,847.41,0.79098804]
[1757022317830,0.20523648,847.99,847.4,0.79098804]
[1757022318028,0.20523648,847.99,847.41,0.79098804]
[1757022325036,0.20523648,847.99,847.42,0.79098804]
[1757022325236,0.20523648,847.99,847.46,0.79098804]
[1757022325733,0.20523648,847.99,847.45,0.79098804]
[1757022331241,0.20523648,847.99,847.46,0.79098804]
[1757022332848,0.20523648,847.99,847.45,0.79098804]
[1757022334845,0.20523648,847.99,847.44,0.79098804]
[1757022335050,0.20523648,847.99,847.43,0.79098804]
[1757022335347,0.20523648,847.99,847.44,0.79098804]
[1757022336448,0.20523648,847.99,847.44,0.79070871]
[1757022337446,0.20523648,847.99,847.45,0.79070871]
[1757022339053,0.20523648,847.99,847.46,0.79070871]
[1757022342250,0.20523648,847.99,847.47,0.79070871]
[1757022344252,0.20523648,847.99,847.48,0.79070871]
[1757022344557,0.20523648,847.99,847.49,0.79070871]
[1757022345051,1.72051625,847.99,847.5,0.79070871]
[1757022345251,1.51527977,847.98,847.51,0.79070871]
[1757022345453,0.72040225,847.97,847.51,0.79070871]
[1757022346151,0.72040225,847.97,847.37,1.0573912]
[1757022346152,1.51527977,847.97,847.52,0.79070871]
[1757022346356,0.72040225,847.96,847.52,0.79070871]
[1757022349459,0.72040225,847.95,847.52,0.79070871]
[1757022349757,0.72040225,847.96,847.52,0.79070871]
[1757022349954,0.72040225,847.95,847.52,0.79070871]
[1757022350159,0.72040225,847.96,847.52,0.79070871]
[1757022350353,0.72040225,847.95,847.52,0.79070871]
[1757022350556,0.72040225,847.96,847.52,0.79070871]
[1757022350754,0.72040225,847.95,847.52,0.79070871]
[1757022350958,0.72040225,847.96,847.52,0.79070871]
[1757022351159,0.72040225,847.95,847.53,0.79070871]
[1757022351361,0.72040225,847.94,847.53,0.79070871]
[1757022351561,0.72040225,847.95,847.53,0.79070871]
[1757022351761,0.72040225,847.94,847.53,0.79070871]
[1757022351961,0.72040225,847.95,847.53,0.79070871]
[1757022352162,0.72040225,847.94,847.53,0.79070871]
[1757022352461,0.79487752,847.96,847.53,0.79070871]
[1757022352462,0.72040225,847.93,847.53,0.79070871]
[1757022352661,0.72040225,847.95,847.53,0.79070871]
[1757022352861,0.72040225,847.94,847.53,0.79070871]
[1757022353156,0.79487752,847.96,847.53,0.79070871]
[1757022353157,0.72040225,847.93,847.53,0.79070871]
[1757022353360,0.72040225,847.92,847.53,0.79070871]
[1757022353660,0.72040225,847.95,847.53,0.79070871]
[1757022353858,0.72040225,847.94,847.53,0.79070871]
[1757022354059,0.72040225,847.93,847.53,0.79070871]
[1757022354262,0.72040225,847.92,847.54,0.79070871]
[1757022354459,0.72040225,847.94,847.54,0.79070871]
[1757022354659,0.72040225,847.93,847.54,0.79070871]
[1757022354959,0.79487752,847.95,847.54,0.79070871]
[1757022354960,0.72040225,847.94,847.54,0.79070871]
[1757022355160,0.72040225,847.93,847.53,0.79070871]
[1757022355463,0.72040225,847.95,847.53,0.79070871]
[1757022355662,0.72040225,847.94,847.53,0.79070871]
[1757022355864,0.72040225,847.93,847.53,0.79070871]
[1757022356067,0.72040225,847.95,847.53,0.79070871]
[1757022356263,0.72040225,847.94,847.53,0.79070871]
[1757022356562,0.72040225,847.93,847.53,0.79070871]
[1757022356766,0.72040225,847.95,847.53,0.79070871]
[1757022356967,0.72040225,847.94,847.53,0.79070871]
[1757022357164,0.72040225,847.93,847.53,0.79070871]
[1757022357368,0.72040225,847.95,847.53,0.79070871]
[1757022357569,0.72040225,847.94,847.53,0.79070871]
[1757022357767,0.79487752,847.96,847.53,0.79070871]
[1757022357768,0.72040225,847.93,847.53,0.79070871]
[1757022357968,0.72040225,847.95,847.53,0.79070871]
[1757022358165,0.79487752,847.96,847.53,0.79070871]
[1757022358166,0.72040225,847.94,847.53,0.79070871]
[1757022358469,0.72040225,847.93,847.53,0.79070871]
[1757022358764,0.72040225,847.95,847.53,0.79070871]
[1757022358964,0.72040225,847.94,847.53,0.79070871]
[1757022359165,0.72040225,847.93,847.53,0.79070871]
[1757022359365,0.72040225,847.95,847.53,0.79070871]
[1757022359568,0.72040225,847.94,847.53,0.79070871]
[1757022359764,0.72040225,847.93,847.53,0.79070871]
[1757022359967,0.72040225,847.96,847.53,0.79070871]
[1757022360165,0.72040225,847.95,847.53,0.79070871]
[1757022360369,0.72040225,847.94,847.53,0.79070871]
[1757022360564,0.72040225,847.93,847.53,0.79070871]
[1757022360767,0.72040225,847.96,847.53,0.79070871]
[1757022361068,0.72040225,847.95,847.53,0.79070871]
[1757022361267,0.72040225,847.94,847.53,0.79070871]
[1757022361464,0.72040225,847.93,847.53,0.79070871]
[1757022361669,0.72040225,847.95,847.53,0.79070871]